bitfinex/quotes_ETHUSD_20251015
["timestamp","ask_amount","ask_price","bid_price","bid_amount"]
[1760494906991,0.2242,4141.5,4139.4,0.0373]
[1760494907194,0.84,4141.4,4140.5,2.41511882]
[1760494907392,0.84,4141.4,4139.4,0.0373]
[1760494907569,2.69529,4141.3,4140.8,2.4149439]
[1760494907770,2.69529,4141.3,4139.8,0.0373]
[1760494907991,2.541,4141.2,4140.6,2.41506897]
[1760494908197,2.541,4141.1,4141.0,2.41485869]
[1760494908701,2.541,4141.1,4140.9,2.41491555]
[1760494908873,2.541,4141.1,4141.0,2.41487563]
[1760494909898,2.541,4141.1,4141.0,2.53487563]
[1760494910098,2.541,4141.1,4141.0,0.12]
[1760494910798,2.541,4141.1,4141.0,2.53487563]
[1760494910998,2.541,4141.1,4141.0,0.12]
[1760494913408,2.541,4141.1,4140.2,2.41533092]
[1760494913409,2.9833,4141.1,4140.2,2.41533092]
[1760494913620,2.9833,4141.1,4140.6,0.12]
[1760494913800,0.12,4141.3,4140.6,0.12]
[1760494914132,0.2242,4141.5,4141.3,2.41464269]
[1760494914304,0.12,4142.0,4141.5,2.41458367]
[1760494914305,0.2193,4141.9,4141.5,2.41458367]
[1760494914509,1.92,4141.7,4141.2,2.53474734]
[1760494914722,1.92,4141.7,4141.5,0.12]
[1760494915430,2.536,4141.8,4141.5,0.12]
[1760494915431,2.176,4141.6,4141.5,0.12]
[1760494915798,0.2193,4142.4,4141.5,0.25346185]
[1760494915996,1.121,4142.3,4141.2,2.414759]
[1760494916230,1.121,4142.3,4140.4,13.39676599]
[1760494916434,1.121,4142.3,4141.6,2.41450435]
[1760494916801,1.121,4142.3,4141.7,2.41444937]
[1760494917026,0.2193,4141.8,4141.4,2.41461621]
[1760494917227,2.63340606,4142.4,4140.8,0.0373]
[1760494917228,2.536,4141.7,4140.8,0.0373]
[1760494917541,2.536,4141.6,4141.5,2.41458408]
[1760494917709,2.536,4141.6,4141.3,2.41466627]
[1760494917710,0.2193,4142.4,4142.0,2.4142634]
[1760494917900,2.536,4142.3,4142.2,2.41412327]
[1760494918223,2.536,4142.3,4142.0,2.41423451]
[1760494918442,0.4423,4142.2,4141.6,2.4144961]
[1760494919197,0.4423,4142.2,4140.9,2.41493395]
[1760494919198,0.4423,4142.2,4141.8,2.41440652]
[1760494919397,0.4423,4142.2,4141.5,2.41453464]
[1760494919629,3.25383,4142.3,4140.9,2.41493395]
[1760494919829,2.9783,4142.3,4141.8,2.41440744]
[1760494920035,2.536,4142.3,4141.8,2.41440744]
[1760494920231,2.536,4142.3,4140.8,2.41499227]
[1760494920432,2.536,4142.3,4141.9,2.41433701]
[1760494920738,0.4423,4142.2,4141.9,2.41433701]
[1760494921540,0.4423,4142.2,4141.8,2.41440808]
[1760494921746,2.536,4142.3,4140.9,2.41493395]
[1760494921942,0.2193,4141.9,4140.3,0.002]
[1760494922144,2.532,4141.8,4141.3,2.41465929]
[1760494922521,2.9743,4141.8,4141.4,2.41462879]
[1760494922839,2.9743,4141.8,4140.3,0.002]
[1760494922840,2.9743,4141.8,4141.5,2.41456932]
[1760494923526,2.532,4141.8,4141.4,2.41463145]
[1760494923726,2.532,4141.8,4140.3,0.0393]
[1760494923923,2.532,4141.8,4140.4,2.41522558]
[1760494924124,2.532,4141.8,4141.6,2.4144947]
[1760494924462,2.63340218,4142.4,4140.6,0.0373]
[1760494924463,2.532,4141.7,4140.6,0.0373]
[1760494924664,2.532,4141.6,4141.5,2.41458408]
[1760494924840,0.2193,4141.8,4141.7,2.41444602]
[1760494925033,2.531,4141.8,4141.7,2.41444602]
[1760494925232,1.088,4141.8,4141.7,2.41444602]
[1760494925561,4.706,4141.8,4141.7,2.41444602]
[1760494925767,4.706,4141.8,4141.7,2.53444602]
[1760494926362,2.53,4141.8,4141.7,2.53444602]
[1760494927636,2.53,4141.8,4141.7,2.53446748]
[1760494928028,3.74002538,4141.8,4141.2,2.41471593]
[1760494928235,2.41452806,4141.6,4141.1,0.12]
[1760494928466,0.6336,4141.4,4141.1,0.12]
[1760494928670,5.45746912,4141.3,4140.4,2.41522558]
[1760494928835,0.6336,4141.1,4140.3,0.002]
[1760494929038,2.92960321,4141.0,4140.4,0.12]
[1760494929239,0.2193,4140.5,4140.4,0.12]
[1760494929468,3.26202538,4140.5,4140.4,0.12]
[1760494929841,3.72422538,4140.5,4140.3,0.002]
[1760494930137,5.94575096,4140.4,4140.3,0.002]
[1760494930343,5.94575096,4140.4,4139.5,2.41573141]
[1760494930564,1.29343654,4140.1,4139.3,2.41585041]
[1760494930768,3.04172538,4140.0,4139.2,2.41591236]
[1760494930958,6.05752538,4140.0,4138.5,2.41633179]
[1760494931164,3.72816192,4140.0,4139.9,2.41751728]
[1760494931347,5.59532538,4140.0,4139.9,0.002]
[1760494931537,6.74640157,4140.0,4139.9,0.002]
[1760494931738,2.43472538,4140.0,4139.9,0.002]
[1760494931955,6.25727181,4140.0,4139.9,2.41751728]
[1760494932155,5.59532538,4140.0,4139.9,0.002]
[1760494932363,6.05752538,4140.0,4139.6,2.4156849]
[1760494932655,3.04272538,4139.9,4139.8,2.41557563]
[1760494933167,0.6336,4139.8,4138.1,0.002]
[1760494933369,1.29820413,4139.6,4138.4,2.41633511]
[1760494933585,3.04272538,4139.5,4139.3,2.41586575]
[1760494933786,0.51472538,4139.4,4138.4,2.41635222]
[1760494933958,0.51472538,4139.3,4139.2,2.41592578]
[1760494934286,0.51472538,4139.3,4138.2,2.41650059]
[1760494934492,0.51472538,4139.2,4138.2,2.41645256]
[1760494934655,3.04172538,4139.1,4138.3,2.41640666]
[1760494934983,2.527,4139.1,4139.0,2.41604252]
[1760494935185,3.04637535,4139.1,4139.0,2.41604252]
[1760494935488,5.22237535,4139.1,4139.0,2.41604252]
[1760494936301,5.68457535,4139.1,4138.6,0.002]
[1760494936597,0.51937535,4139.0,4138.6,2.41822044]
[1760494936906,0.6336,4138.8,4138.6,0.002]
[1760494937191,3.04537535,4138.7,4138.6,0.002]
[1760494937564,3.50757535,4138.7,4138.6,0.002]
[1760494938100,3.50757535,4138.7,4138.6,2.41827603]
[1760494938955,3.50757535,4138.7,4138.6,0.002]
[1760494939156,4.14117535,4138.7,4138.6,0.002]
[1760494939807,3.67897535,4138.7,4138.6,2.41827603]
[1760494939974,0.51937535,4138.7,4138.6,2.41827603]
[1760494940307,3.67697535,4138.7,4138.6,0.1228]
[1760494940604,4.55309289,4138.7,4138.6,0.002]
[1760494941463,8.88931054,4138.7,4138.6,0.002]
[1760494941703,6.47309289,4138.7,4138.6,0.002]
[1760494942201,6.47309289,4138.7,4138.1,2.4185243]
[1760494942202,2.41642624,4138.4,4138.1,0.002]
[1760494942489,18.36687558,4138.2,4138.1,0.002]
[1760494942694,0.51937535,4138.2,4138.1,2.41856799]
[1760494942880,1.29357212,4139.8,4138.1,0.002]
[1760494943063,0.6932,4139.9,4139.2,2.41587785]
[1760494943262,0.6932,4139.9,4139.3,2.41583329]
[1760494943462,0.26132,4139.8,4139.3,2.41583329]
[1760494943961,0.6336,4139.6,4139.3,2.41583329]
[1760494944162,0.6336,4139.4,4139.3,2.41583329]
[1760494944385,1.92,4139.3,4138.1,0.002]
[1760494944698,1.92,4139.3,4139.2,2.41592578]
[1760494944991,2.9932,4139.4,4138.2,2.41650959]
[1760494945161,0.60982806,4139.9,4138.1,0.002]
[1760494945162,0.60982806,4139.9,4139.8,2.41557563]
[1760494945362,0.37882806,4139.9,4139.8,2.41557563]
[1760494945596,0.2193,4140.5,4140.4,2.41522558]
[1760494945898,0.231,4141.0,4139.7,0.02415633]
[1760494946067,1.147,4140.9,4140.2,2.41531293]
[1760494946263,1.147,4140.9,4140.8,2.41499227]
[1760494946485,1.147,4140.9,4140.4,2.41517612]
[1760494946795,0.231,4141.0,4139.9,2.41547292]
[1760494947004,4.449,4140.9,4140.8,2.41498477]
[1760494947579,1.92,4140.8,4140.7,2.41504583]
[1760494947779,2.529,4140.9,4140.7,2.41504583]
[1760494947974,0.37873344,4141.5,4140.7,2.41504583]
[1760494947975,0.37873344,4141.5,4140.7,0.48302661]
[1760494948174,0.231,4143.0,4140.8,1.98544992]
[1760494948401,0.231,4143.0,4142.5,2.41394863]
[1760494948588,0.6932,4143.0,4142.6,2.41393464]
[1760494948928,0.231,4143.0,4142.9,2.41376813]
[1760494949079,0.231,4143.2,4142.9,2.41372315]
[1760494949416,0.4622,4143.1,4142.8,2.41381102]
[1760494949578,1.92,4143.0,4142.8,2.41381102]
[1760494950080,2.53,4143.1,4142.9,2.41376813]
[1760494950478,4.45,4143.1,4143.0,2.41370987]
[1760494950676,1.92,4143.0,4141.9,2.41430679]
[1760494950975,1.92,4142.8,4142.7,2.41388466]
[1760494951319,1.92,4142.8,4139.8,0.24811736]
[1760494951320,0.6336,4142.7,4141.0,0.0413]
[1760494951501,0.6336,4142.7,4142.3,2.41406786]
[1760494951680,0.231,4143.2,4141.9,0.0413]
[1760494951878,0.632,4143.1,4143.0,2.41370987]
[1760494952079,0.6336,4143.5,4142.2,2.45545175]
[1760494952308,0.817,4143.4,4143.2,2.4135879]
[1760494952510,0.817,4143.4,4143.3,2.4135351]
[1760494952778,2.528,4143.4,4142.6,0.0413]
[1760494952995,2.528,4143.3,4142.8,2.41382639]
[1760494953199,2.528,4143.3,4142.1,0.0413]
[1760494953385,2.528,4143.3,4143.2,2.41359335]
[1760494954315,0.001,4144.0,4143.1,0.12]
[1760494954316,0.001,4144.0,4143.7,2.4132522]
[1760494954515,1.92,4143.8,4143.7,0.12]
[1760494955418,4.096,4143.8,4143.7,0.12]
[1760494955617,4.096,4143.8,4143.7,2.53330212]
[1760494955819,3.008,4143.8,4143.7,0.12]
[1760494956412,3.008,4143.8,4143.7,2.53330212]
[1760494956612,3.009,4143.8,4143.7,2.53330212]
[1760494957017,0.001,4143.8,4143.7,2.53330212]
[1760494957319,2.525,4143.8,4143.7,2.55743514]
[1760494957617,2.525,4143.8,4143.7,2.53330212]
[1760494957999,2.525,4143.8,4143.7,0.12]
[1760494958586,2.525,4143.8,4143.7,2.53330212]
[1760494959994,2.525,4143.8,4143.7,0.12]
[1760494960696,2.525,4143.8,4143.7,2.53330212]
[1760494960892,2.984,4143.8,4143.7,0.12]
[1760494961093,0.6336,4143.7,4141.8,2.41440919]
[1760494961314,0.6336,4143.7,4141.2,2.41471142]
[1760494961315,1.0926,4143.7,4143.3,0.12]
[1760494961628,0.6336,4143.5,4143.3,0.12]
[1760494961794,3.1546,4143.4,4143.3,0.12]
[1760494962125,3.1546,4143.4,4142.8,0.12]
[1760494962126,2.521,4143.4,4142.8,0.12]
[1760494962289,2.521,4143.4,4143.3,0.12]
[1760494962495,0.6346,4143.8,4143.4,2.41347261]
[1760494962801,0.6346,4143.8,4143.3,2.53349851]
[1760494962802,2.52,4143.7,4143.3,2.53349851]
[1760494963136,2.52,4143.7,4143.4,2.41347541]
[1760494963294,2.52,4143.7,4143.3,0.12]
[1760494963295,0.459,4143.6,4143.3,0.12]
[1760494963496,0.001,4143.8,4143.4,2.41347685]
[1760494963692,0.001,4143.8,4143.7,2.41330212]
[1760494963930,0.399,4143.8,4143.7,2.41330212]
[1760494964306,0.399,4143.8,4143.5,0.24134768]
[1760494964496,0.399,4143.8,4142.4,0.0413]
[1760494964497,0.459,4143.7,4142.4,0.0413]
[1760494964696,0.399,4143.8,4142.5,0.24553806]
[1760494964924,0.399,4143.8,4143.7,2.41330212]
[1760494965226,1.487,4143.8,4140.7,2.41500102]
[1760494965524,3.034,4143.8,4143.4,2.4134309]
[1760494966625,3.034,4143.8,4143.6,2.41330306]
[1760494966626,2.575,4143.8,4143.6,2.41330306]
[1760494967021,2.575,4143.8,4143.7,2.41330212]
[1760494967230,2.575,4143.8,4143.5,2.41340533]
[1760494967405,0.459,4143.7,4142.6,2.41393104]
[1760494967728,0.459,4143.7,4143.5,2.4134165]
[1760494967929,0.459,4143.7,4143.4,2.4134709]
[1760494968430,2.575,4143.8,4143.5,2.41338969]
[1760494968729,3.034,4143.8,4143.4,2.41346866]
[1760494968907,3.034,4143.8,4143.1,2.41360957]
[1760494968908,0.858,4143.8,4143.5,2.41341097]
[1760494970538,0.459,4143.7,4143.5,2.41341097]
[1760494970740,0.459,4143.7,4143.3,2.41353296]
[1760494971237,0.399,4143.8,4143.6,2.41336026]
[1760494971432,0.399,4143.8,4143.7,2.41330212]
[1760494971633,2.518,4143.8,4143.7,2.41330212]
[1760494972742,2.517,4143.8,4143.7,2.41330212]
[1760494973540,2.517,4143.8,4143.7,2.53330212]
[1760494975345,4.691,4143.8,4143.7,2.53330212]
[1760494976239,5.1378,4143.8,4143.7,0.12]
[1760494976549,4.0508,4143.8,4143.7,0.12]
[1760494976754,2.9638,4143.8,4143.7,0.12]
[1760494978330,3.48431094,4143.8,4143.7,0.12]
[1760494979133,6.65099942,4143.8,4143.7,0.12]
[1760494979433,0.6336,4143.3,4142.9,0.12]
[1760494979643,0.6336,4143.1,4142.9,0.12]
[1760494980027,0.6336,4143.0,4142.9,0.12]
[1760494980556,2.511,4143.2,4143.1,2.41365161]
[1760494981150,2.9578,4143.2,4141.5,0.0413]
[1760494981346,1.45049649,4143.1,4142.5,2.41398848]
[1760494981657,0.52111649,4143.0,4141.6,2.41452578]
[1760494981830,0.6336,4143.1,4142.4,2.4140537]
[1760494982025,0.52112288,4143.0,4142.9,2.41376813]
[1760494982239,2.511,4143.2,4142.0,0.0413]
[1760494982437,2.511,4143.2,4143.1,2.41365161]
[1760494982964,2.511,4143.2,4143.0,2.41366763]
[1760494982965,2.9578,4143.2,4143.0,2.41366763]
[1760494983270,0.4468,4143.1,4143.0,2.41366763]
[1760494983956,2.511,4143.2,4143.1,2.41365161]
[1760494984165,2.511,4143.2,4143.1,2.8987973]
[1760494984457,2.9578,4143.2,4141.8,2.41440919]
[1760494984678,2.9578,4143.2,4142.9,2.41376373]
[1760494984901,0.4468,4143.1,4143.0,2.41370987]
[1760494985057,2.511,4143.2,4142.1,0.0413]
[1760494985258,2.511,4143.2,4143.1,2.41365161]
[1760494985570,4.685,4143.2,4143.1,2.41365161]
[1760494985788,2.511,4143.2,4143.1,2.41365161]
[1760494989252,2.511,4143.2,4143.1,2.89639318]
[1760494990075,2.511,4143.2,4143.1,2.41365161]
[1760494990590,0.52107771,4143.7,4143.6,2.41336036]
[1760494990767,2.508,4143.7,4143.6,2.41336036]
[1760494990968,2.508,4143.7,4143.6,2.53336036]
[1760494993886,2.509,4143.7,4143.6,2.53336036]
[1760494994211,2.509,4143.7,4143.6,3.03045369]
[1760494994587,2.509,4143.7,4143.6,2.95175369]
[1760494995322,4.683,4143.7,4143.6,2.95175369]
[1760494995610,2.509,4143.7,4143.6,2.91045369]
[1760494995911,2.509,4143.7,4143.6,2.41336036]
[1760494996407,2.509,4143.7,4143.6,2.45466036]
[1760494996820,2.509,4143.7,4143.6,2.41336036]
[1760494997730,2.9825,4143.7,4143.6,2.41336036]
[1760494997937,2.9825,4143.7,4141.8,2.41435201]
[1760494998226,1.94898753,4143.6,4143.2,2.41354628]
[1760494998385,1.42819,4143.6,4143.2,2.41354628]
[1760494998577,0.4735,4143.5,4143.0,2.41365341]
[1760494998795,0.4735,4143.4,4143.1,2.41363369]
[1760494999005,0.95469,4143.6,4143.1,2.41363369]
[1760494999195,0.4735,4143.3,4143.2,2.41359335]
[1760495000009,0.4735,4143.3,4143.1,2.41363523]
[1760495000204,2.503,4143.2,4143.1,2.41365161]
[1760495000811,2.9765,4143.2,4143.1,2.41365161]
[1760495001216,0.001,4143.7,4143.2,2.41359335]
[1760495001519,0.001,4143.7,4143.5,2.4134186]
[1760495001520,2.502,4143.6,4143.5,2.4134186]
[1760495001894,2.502,4143.6,4143.1,0.48273819]
[1760495002096,2.502,4143.6,4142.3,0.0413]
[1760495002097,2.502,4143.6,4143.4,2.41347685]
[1760495002325,2.502,4143.6,4143.5,2.4134186]
[1760495003019,2.9755,4143.6,4143.5,2.4134186]
[1760495003218,2.502,4143.6,4143.5,2.4134186]
[1760495004196,2.9755,4143.6,4143.5,2.4134186]
[1760495004523,2.9755,4143.6,4143.5,2.5334186]
[1760495004524,2.502,4143.6,4143.5,2.5334186]
[1760495005023,2.9755,4143.6,4143.5,0.12]
[1760495005224,2.9755,4143.6,4143.5,2.5334186]
[1760495005518,5.1495,4143.6,4143.5,2.5334186]
[1760495005734,4.676,4143.6,4143.5,2.5334186]
[1760495006830,3.589,4143.6,4143.5,2.5334186]
[1760495007240,2.502,4143.6,4143.5,2.5334186]
[1760495009534,2.9755,4143.6,4143.5,2.5334186]
[1760495009823,3.92959,4143.6,4143.3,0.12]
[1760495010026,3.45609,4143.6,4143.3,0.12]
[1760495010212,0.4735,4143.5,4143.3,0.12]
[1760495010924,0.4735,4143.4,4143.3,0.12]
[1760495012732,1.436899,4143.4,4143.3,0.12]
[1760495012897,1.436899,4143.4,4142.8,2.53382136]
[1760495012898,0.6336,4143.3,4142.8,2.53382136]
[1760495013102,0.2274,4142.9,4142.8,0.12]
[1760495013412,0.7009,4142.9,4142.8,2.53382639]
[1760495013928,0.861,4142.9,4142.8,0.12]
[1760495014130,0.6336,4142.8,4142.2,2.41416913]
[1760495014298,3.1306,4142.7,4142.6,2.41394293]
[1760495014731,0.6336,4142.6,4142.4,0.12]
[1760495014931,0.6336,4142.6,4141.2,2.41474489]
[1760495014932,1.1071,4142.6,4141.2,2.41474489]
[1760495015140,0.6336,4142.4,4141.5,2.41456221]
[1760495015352,2.3935,4142.5,4140.5,0.0413]
[1760495015353,0.6336,4142.2,4141.6,2.41452578]
[1760495015501,0.6336,4142.2,4141.4,2.41464234]
[1760495015502,0.6336,4142.2,4141.7,2.41445351]
[1760495015702,0.6336,4142.2,4141.5,0.02414584]
[1760495015916,4.671,4142.3,4141.3,0.024147]
[1760495016111,1.087,4142.3,4142.2,2.41417604]
[1760495016313,4.671,4142.3,4142.2,2.41417604]
[1760495016603,4.671,4142.3,4142.2,2.89701916]
[1760495016604,2.497,4142.3,4142.2,2.89701916]
[1760495017611,2.497,4142.3,4142.2,2.93831916]
[1760495017813,0.001,4143.6,4143.5,2.4134186]
[1760495018406,0.001,4143.6,4143.5,2.47885278]
[1760495018716,0.001,4143.6,4143.5,2.92678793]
[1760495018911,0.001,4143.6,4143.5,2.96808793]
[1760495019221,0.585,4143.6,4143.5,2.96808793]
[1760495019422,0.585,4143.6,4143.5,2.94395375]
[1760495020205,0.001,4144.1,4143.5,2.94395375]
[1760495020206,0.001,4144.1,4143.9,2.41318564]
[1760495020539,0.4729,4145.8,4145.5,2.41225425]
[1760495020706,0.7066,4145.8,4145.7,2.41213787]
[1760495020907,0.6336,4145.7,4144.0,2.41312741]
[1760495021108,0.6336,4145.7,4144.5,2.41281372]
[1760495021347,0.6336,4145.7,4143.9,0.52394547]
[1760495021348,3.21357212,4147.4,4144.6,0.02412778]
[1760495021546,0.403,4146.0,4145.7,2.41210559]
[1760495021746,0.2337,4145.8,4145.6,2.41218675]
[1760495021946,1.1065,4145.7,4145.6,2.41218675]
[1760495022364,1.1065,4145.7,4145.4,2.41226021]
[1760495022657,0.6336,4145.5,4144.9,2.4125867]
[1760495022832,0.6336,4145.5,4145.0,2.41254372]
[1760495023029,0.4729,4145.4,4145.0,2.41254372]
[1760495023231,2.5536,4145.2,4144.9,2.41260344]
[1760495023423,2.5536,4145.2,4145.1,2.41248703]
[1760495023957,3.0265,4145.2,4144.1,2.4543174]
[1760495024250,3.0265,4145.2,4145.1,2.41248703]
[1760495024439,3.0265,4145.2,4144.8,2.41264437]
[1760495024645,2.5536,4145.2,4145.0,2.4125305]
[1760495025149,2.5536,4145.2,4145.1,0.12]
[1760495025352,4.7276,4145.2,4145.1,0.12]
[1760495025522,4.7276,4145.2,4145.1,2.53248703]
[1760495027244,2.5536,4145.2,4145.1,0.12]
[1760495027429,2.5536,4145.2,4145.0,2.41249807]
[1760495027631,2.5536,4145.2,4144.8,2.41266036]
[1760495027833,2.5536,4145.2,4145.0,2.41249479]
[1760495028334,2.5536,4145.2,4144.0,0.0413]
[1760495028335,0.6336,4145.0,4143.6,2.41336036]
[1760495028532,0.6336,4144.8,4143.6,2.41336036]
[1760495028734,2.5536,4144.6,4143.5,1.43803515]
[1760495028934,0.6336,4144.4,4143.8,2.41324021]
[1760495029134,0.6336,4144.4,4144.0,2.4130825]
[1760495029360,0.6336,4144.2,4144.0,2.41309272]
[1760495029548,4.417,4144.1,4144.0,2.41309272]
[1760495029766,0.6336,4144.0,4143.5,0.9488]
[1760495030076,0.6336,4143.8,4143.5,3.36220822]
[1760495030280,0.6336,4143.6,4143.5,3.36218158]
[1760495030443,5.0506,4143.6,4143.5,0.9488]
[1760495030775,5.0506,4143.6,4143.5,3.3622186]
[1760495032485,0.001,4144.1,4144.0,2.41312741]
[1760495032777,3.1326,4144.1,4144.0,2.41312741]
[1760495033081,2.499,4144.1,4144.0,2.41312741]
[1760495034780,5.0526,4144.1,4144.0,2.41312741]
[1760495034986,0.6336,4144.0,4143.5,0.9488]
[1760495035173,0.8623,4143.6,4143.5,3.3622186]
[1760495035478,4.4463,4143.6,4143.5,3.3622186]
[1760495035681,3.3593,4143.6,4143.5,3.3622186]
[1760495036245,3.1306,4143.6,4143.5,3.3622186]
[1760495036647,0.001,4144.1,4144.0,2.41312741]
[1760495036866,0.001,4144.1,4143.9,2.41316083]
[1760495036867,2.5536,4144.0,4143.9,2.41316083]
[1760495037302,2.5536,4144.0,4143.9,2.53316083]
[1760495037502,0.001,4144.1,4144.0,2.41312741]
[1760495037675,3.1316,4144.1,4144.0,2.41312741]
[1760495039871,2.498,4144.1,4144.0,2.41312741]
[1760495040072,2.498,4144.1,4144.0,2.90775623]
[1760495040474,0.001,4144.1,4144.0,5.0131875]
[1760495040677,0.001,4144.1,4144.0,4.86905623]
[1760495041096,0.001,4144.6,4144.5,2.41283628]
[1760495042298,0.001,4145.0,4144.9,2.41260344]
[1760495042478,0.001,4145.0,4144.9,2.89513206]
[1760495043498,1.432,4145.0,4144.9,2.89513206]
[1760495043896,0.001,4145.0,4144.9,2.89513206]
[1760495044096,0.6336,4145.7,4145.6,2.41219606]
[1760495044301,0.6336,4145.8,4145.7,2.41213787]
[1760495044500,0.4627,4146.3,4146.0,2.41196333]
[1760495044906,0.861,4146.1,4146.0,2.41196333]
[1760495045298,0.4627,4146.9,4146.6,2.41160339]
[1760495045501,1.087,4146.1,4146.0,3.13558142]
[1760495045709,3.579,4146.1,4146.0,3.13558142]
[1760495047415,2.492,4146.1,4146.0,3.13558142]
[1760495048825,0.6336,4146.0,4145.0,2.41252539]
[1760495049005,0.6336,4145.8,4144.4,2.4128945]
[1760495049205,0.6336,4145.8,4145.7,2.41213787]
[1760495049808,0.6336,4146.0,4145.9,2.41202151]
[1760495050018,3.1256,4146.1,4146.0,2.41196333]
[1760495050590,3.5802,4146.1,4144.5,0.0413]
[1760495050801,0.6336,4146.0,4145.7,0.12]
[1760495051003,0.2291,4145.8,4145.7,0.12]
[1760495051290,0.8627,4145.8,4145.7,0.12]
[1760495051597,1.3173,4145.8,4145.7,0.12]
[1760495053129,0.12,4145.7,4144.7,0.12]
[1760495053304,0.12,4145.7,4144.0,0.002]
[1760495053305,0.6336,4144.7,4144.0,2.41510442]
[1760495053626,3.1266,4144.6,4144.5,0.12]
[1760495053828,3.5812,4144.6,4144.5,0.12]
[1760495055198,4.6682,4144.6,4144.5,0.12]
[1760495055394,5.7552,4144.6,4144.5,0.12]
[1760495055795,5.3006,4144.6,4144.5,2.53283628]
[1760495055995,0.2291,4145.8,4144.5,2.53283628]
[1760495055996,0.2291,4145.8,4144.5,0.61699094]
[1760495056231,1.853,4145.7,4145.4,2.41227001]
[1760495056552,1.2206,4145.7,4145.6,2.41219606]
[1760495056830,0.766,4145.7,4145.6,2.53219606]
[1760495057021,1.2206,4145.7,4145.6,2.53219606]
[1760495057827,2.5536,4145.6,4144.6,2.41272822]
[1760495058049,1.11029,4145.5,4145.1,0.12]
[1760495058207,0.4546,4145.5,4144.0,0.0433]
[1760495058401,0.6336,4145.4,4144.0,0.002]
[1760495058840,0.766,4145.7,4144.0,0.002]
[1760495058841,0.6336,4145.1,4144.0,0.002]
[1760495059043,2.5536,4144.9,4144.8,2.41265226]
[1760495059461,2.5536,4144.9,4144.0,0.002]
[1760495059462,3.2373,4144.9,4144.0,0.002]
[1760495059790,0.6336,4144.7,4144.6,2.41272969]
[1760495060068,0.2291,4144.8,4144.7,2.41271985]
[1760495060234,2.5536,4144.9,4144.8,2.41266164]
[1760495060629,1.92,4144.9,4144.8,2.41266164]
[1760495061231,0.6336,4144.8,4144.1,0.24152257]
[1760495061432,0.6336,4144.8,4144.7,2.41271985]
[1760495061630,1.0882,4144.8,4144.7,2.41271985]
[1760495062375,1.0882,4144.8,4144.2,2.41301095]
[1760495062530,1.0882,4144.8,4144.0,0.002]
[1760495062531,0.4546,4144.7,4144.0,0.002]
[1760495062731,1.92,4144.5,4144.1,2.41305186]
[1760495062956,1.92,4144.5,4144.0,0.002]
[1760495062957,0.6336,4144.3,4144.0,0.002]
[1760495063155,0.6336,4144.1,4144.0,2.41512599]
[1760495063491,1.0882,4144.1,4144.0,2.41512599]
[1760495063640,0.6336,4144.1,4144.0,2.41512741]
[1760495065031,0.6336,4144.1,4144.0,0.002]
[1760495065252,3.2622,4144.1,4144.0,0.002]
[1760495065447,2.8076,4144.1,4144.0,0.002]
[1760495065771,2.8076,4144.1,4144.0,2.41512741]
[1760495066357,0.2291,4144.9,4144.0,0.002]
[1760495066527,0.2291,4144.9,4144.0,2.65659323]
[1760495066734,0.4546,4145.9,4145.3,2.41235607]
[1760495066961,2.9496,4145.7,4145.3,2.41235607]
[1760495067282,0.001,4145.5,4145.3,2.41235607]
[1760495067442,0.001,4145.5,4145.4,2.41231244]
[1760495067644,0.001,4145.5,4145.3,2.41236032]
[1760495067961,0.001,4145.5,4145.4,2.41231244]
[1760495068267,2.496,4145.5,4145.4,2.53231244]
[1760495069832,3.1296,4145.5,4145.4,2.53231244]
[1760495070470,2.496,4145.5,4145.4,2.53231244]
[1760495070688,3.1296,4145.5,4145.4,0.12]
[1760495070974,3.5842,4145.5,4145.4,0.12]
[1760495071405,0.6336,4145.4,4145.2,0.12]
[1760495071697,0.6336,4145.4,4145.3,2.41237063]
[1760495073980,0.6336,4145.4,4145.2,0.12]
[1760495074297,0.6336,4145.4,4145.3,2.41237063]
[1760495075107,3.1256,4145.4,4145.3,2.53237063]
[1760495075313,5.2996,4145.4,4145.3,2.53237063]
[1760495076698,6.1326,4145.4,4145.3,0.12]
[1760495076994,5.19726,4145.4,4145.0,2.91254192]
[1760495077202,4.6672,4145.4,4145.1,2.41248703]
[1760495077360,4.2126,4145.4,4145.0,0.5]
[1760495077698,4.2126,4145.4,4145.3,2.41237063]
[1760495077880,0.001,4145.5,4145.3,2.41237063]
[1760495078085,5.4982,4145.4,4145.3,2.41237063]
[1760495078765,0.6336,4145.3,4145.2,2.41242446]
[1760495079566,1.0882,4145.3,4145.2,2.41242446]
[1760495080699,1.92,4145.4,4145.2,2.41242446]
[1760495080922,0.001,4145.5,4145.4,2.41231244]
[1760495081092,2.489,4145.5,4145.4,2.41231244]
[1760495082409,3.1226,4145.5,4145.4,2.41231244]
[1760495082610,0.001,4145.5,4145.4,2.41231244]
[1760495082776,2.489,4145.5,4145.4,2.41231244]
[1760495083101,0.001,4145.9,4145.8,2.41207969]
[1760495083698,0.001,4145.9,4145.8,2.43620048]
[1760495083904,0.1725,4146.8,4146.7,2.41155617]
[1760495084093,0.8061,4146.8,4146.7,2.41155617]
[1760495084295,5.2131,4146.8,4146.7,2.41155617]
[1760495085283,2.5536,4146.7,4146.6,2.41160176]
[1760495085733,2.5536,4146.7,4145.7,2.59152349]
[1760495085884,2.9944,4146.7,4146.5,2.41165665]
[1760495086085,2.9944,4146.7,4145.9,2.41202151]
[1760495086306,2.9944,4146.7,4146.0,0.02411963]
[1760495086621,2.5536,4146.7,4146.6,2.41161433]
[1760495086827,2.5536,4146.7,4146.6,2.53161433]